fUSD/lending_fUSD_20260608
["ID","MTS","AMOUNT","RATE_DAILY","PERIOD"]
[424426327,1780875038000,-150.0,0.00013488,2]
[424426300,1780875038000,-220.05390411,0.00013061,2]
[424426330,1780875038000,-150.0,0.00013571,2]
[424426303,1780875038000,-150.56478136,0.00013061,2]
[424426302,1780875038000,-167.79157148,0.00013061,2]
[424426301,1780875038000,-442.32316013,0.00013061,2]
[424426298,1780875038000,-165.03,0.00012858,2]
[424426306,1780875038000,-2000.0,0.00013099,2]
[424426304,1780875038000,-150.56478136,0.00013061,2]
[424426308,1780875038000,-821.82923963,0.00013117,2]
[424426305,1780875038000,-186.18115721,0.00013061,2]
[424426309,1780875038000,-83538.10975074,0.00013122,2]
[424426311,1780875038000,-240.47,0.00013272,2]
[424426312,1780875038000,-500.0,0.00013311,2]
[424426315,1780875038000,-83538.10975074,0.00013418,2]
[424426307,1780875038000,-500.0,0.00013099,2]
[424426316,1780875038000,-150.0,0.00013488,2]
[424426329,1780875038000,-821.82923963,0.00013563,2]
[424426310,1780875038000,-255.0,0.00013261,2]
[424426326,1780875038000,-150.0,0.00013488,2]
[424426322,1780875038000,-169.15934622,0.00013488,2]
[424426321,1780875038000,-151.41923818,0.00013488,2]
[424426320,1780875038000,-150.0,0.00013488,2]
[424426324,1780875038000,-150.0,0.00013488,2]
[424426317,1780875038000,-150.0,0.00013488,2]
[424426319,1780875038000,-150.0,0.00013488,2]
[424426313,1780875038000,-165.03,0.00013348,2]
[424426314,1780875038000,-500.0,0.00013373,2]
[424426318,1780875038000,-150.0,0.00013488,2]
[424426400,1780875039000,-247.220695,0.00013727,2]
[424426390,1780875039000,-500.0,0.00013699,2]
[424426397,1780875039000,-150.0,0.00013702,2]
[424426396,1780875039000,-500.0,0.00013699,2]
[424426395,1780875039000,-500.0,0.00013699,2]
[424426393,1780875039000,-500.0,0.00013699,2]
[424426392,1780875039000,-500.0,0.00013699,2]
[424426389,1780875039000,-500.0,0.00013699,2]
[424426391,1780875039000,-500.0,0.00013699,2]
[424426398,1780875039000,-83538.10975074,0.00013715,2]
[424426394,1780875039000,-500.0,0.00013699,2]
[424426402,1780875039000,-428.515873,0.00013731,2]
[424426416,1780875039000,-324.68583182,0.00013908,2]
[424426404,1780875039000,-150.0,0.00013737,2]
[424426403,1780875039000,-224.410427,0.00013731,2]
[424426405,1780875039000,-150.0,0.00013737,2]
[424426407,1780875039000,-150.0,0.00013798,2]
[424426406,1780875039000,-150.0,0.00013746,2]
[424426409,1780875039000,-150.0,0.00013821,2]
[424426408,1780875039000,-284.96,0.00013818,2]
[424426410,1780875039000,-166.66,0.00013836,2]
[424426414,1780875039000,-150.0,0.00013901,2]
[424426411,1780875039000,-165.03,0.00013838,2]
[424426412,1780875039000,-150.0,0.00013849,2]
[424426413,1780875039000,-150.0,0.00013862,2]
[424426388,1780875039000,-500.0,0.00013699,2]
[424426401,1780875039000,-447.756437,0.00013731,2]
[424426386,1780875039000,-500.0,0.00013699,2]
[424426358,1780875039000,-500.0,0.00013698,2]
[424426387,1780875039000,-500.0,0.00013699,2]
[424426415,1780875039000,-150.0,0.00013904,2]
[424426360,1780875039000,-500.0,0.00013698,2]
[424426359,1780875039000,-500.0,0.00013698,2]
[424426361,1780875039000,-500.0,0.00013698,2]
[424426363,1780875039000,-500.0,0.00013698,2]
[424426364,1780875039000,-500.0,0.00013698,2]
[424426365,1780875039000,-500.0,0.00013698,2]
[424426367,1780875039000,-843.4,0.00013699,2]
[424426366,1780875039000,-168.68,0.00013699,2]
[424426362,1780875039000,-500.0,0.00013698,2]
[424426370,1780875039000,-200.0,0.00013699,2]
[424426372,1780875039000,-500.0,0.00013699,2]
[424426371,1780875039000,-500.0,0.00013699,2]
[424426368,1780875039000,-2500.0,0.00013699,2]
[424426369,1780875039000,-166.66,0.00013699,2]
[424426373,1780875039000,-500.0,0.00013699,2]
[424426374,1780875039000,-500.0,0.00013699,2]
[424426375,1780875039000,-500.0,0.00013699,2]
[424426376,1780875039000,-500.0,0.00013699,2]
[424426377,1780875039000,-500.0,0.00013699,2]
[424426378,1780875039000,-500.0,0.00013699,2]
[424426379,1780875039000,-500.0,0.00013699,2]
[424426380,1780875039000,-500.0,0.00013699,2]
[424426382,1780875039000,-506.5492876,0.00013699,2]
[424426383,1780875039000,-500.0,0.00013699,2]
[424426381,1780875039000,-500.0,0.00013699,2]
[424426385,1780875039000,-500.0,0.00013699,2]
[424426384,1780875039000,-500.0,0.00013699,2]
[424426417,1780875039000,-150.0,0.00013916,2]
[424426399,1780875039000,-420.769544,0.00013727,2]
[424426420,1780875039000,-150.0,0.00013987,2]
[424426450,1780875039000,-324.6858318,0.00014404,2]
[424426452,1780875039000,-433.0,0.00014442,2]
[424426454,1780875039000,-150.0,0.0001447,2]
[424426453,1780875039000,-821.82923963,0.00014454,2]
[424426455,1780875039000,-150.0,0.00014487,2]
[424426456,1780875039000,-150.0,0.00014487,2]
[424426457,1780875039000,-6300.0,0.000145,5]
[424426459,1780875039000,-150.0,0.00014521,2]
[424426464,1780875039000,-83538.10975074,0.00014604,2]
[424426465,1780875039000,-150.0,0.00014612,2]
[424426463,1780875039000,-1200.0,0.000146,5]
[424426461,1780875039000,-150.0,0.0001457,2]
[424426460,1780875039000,-150.0,0.00014558,2]
[424426462,1780875039000,-150.0,0.00014573,2]
[424426467,1780875039000,-150.0,0.00014653,2]
[424426466,1780875039000,-150.0,0.00014625,2]
[424426469,1780875039000,-1200.0,0.000147,5]
[424426468,1780875039000,-150.0,0.00014676,2]
[424426470,1780875039000,-150.0,0.00014728,2]
[424426471,1780875039000,-150.0,0.00014737,2]
[424426475,1780875039000,-442.32316013,0.00014777,2]
[424426473,1780875039000,-199.5,0.00014752,2]
[424426477,1780875039000,-1200.0,0.000148,5]
[424426476,1780875039000,-150.0,0.0001478,2]
[424426478,1780875039000,-150.0,0.0001482,2]
[424426474,1780875039000,-150.0,0.00014772,2]
[424426472,1780875039000,-150.0,0.00014737,2]
[424426448,1780875039000,-5000.0,0.000144,5]
[424426451,1780875039000,-150.0,0.00014418,2]
[424426458,1780875039000,-211.72889114,0.00014512,2]
[424426447,1780875039000,-166.66,0.00014384,2]
[424426421,1780875039000,-150.0,0.00013987,2]
[424426419,1780875039000,-166.66,0.00013973,2]
[424426423,1780875039000,-250.0,0.00014,2]
[424426424,1780875039000,-150.0,0.00014004,2]
[424426449,1780875039000,-150.0,0.00014404,2]
[424426422,1780875039000,-14270.34142765,0.0001399,2]
[424426425,1780875039000,-821.82923963,0.00014008,2]
[424426427,1780875039000,-83538.10975074,0.00014011,2]
[424426428,1780875039000,-150.0,0.00014056,2]
[424426429,1780875039000,-150.0,0.0001407,2]
[424426430,1780875039000,-150.0,0.00014108,2]
[424426431,1780875039000,-166.66,0.0001411,2]
[424426432,1780875039000,-150.0,0.0001413,2]
[424426433,1780875039000,-150.0,0.00014154,2]
[424426426,1780875039000,-613.76538141,0.0001401,2]
[424426435,1780875039000,-150.0,0.00014211,2]
[424426434,1780875039000,-150.0,0.00014159,2]
[424426446,1780875039000,-150.0,0.00014366,2]
[424426445,1780875039000,-350.88,0.00014355,2]
[424426444,1780875039000,-150.0,0.00014344,2]
[424426443,1780875039000,-150.0,0.0001432,2]
[424426442,1780875039000,-150.0,0.00014315,2]
[424426418,1780875039000,-150.0,0.00013953,2]
[424426440,1780875039000,-150.0,0.00014263,2]
[424426437,1780875039000,-150.0,0.00014237,2]
[424426436,1780875039000,-150.0,0.00014237,2]
[424426439,1780875039000,-166.66,0.00014247,2]
[424426438,1780875039000,-150.0,0.00014237,2]
[424426441,1780875039000,-83538.10975074,0.00014307,2]
[424426497,1780875040000,-150.0,0.00014986,2]
[424426495,1780875040000,-150.44031967,0.00014986,2]
[424426493,1780875040000,-150.0,0.00014986,2]
[424426494,1780875040000,-237.29286515,0.00014986,2]
[424426492,1780875040000,-224.38985235,0.00014986,2]
[424426491,1780875040000,-150.0,0.00014935,2]
[424426488,1780875040000,-324.6858318,0.000149,2]
[424426490,1780875040000,-1500.0,0.00014918,2]
[424426484,1780875040000,-821.82923963,0.000149,2]
[424426489,1780875040000,-150.0,0.00014903,2]
[424426485,1780875040000,-1200.0,0.000149,5]
[424426486,1780875040000,-230.19415474,0.000149,2]
[424426483,1780875040000,-25000.0,0.000149,3]
[424426482,1780875040000,-150.0,0.00014883,2]
[424426479,1780875040000,-150.0,0.00014831,2]
[424426480,1780875040000,-6414.0,0.00014877,2]
[424426498,1780875040000,-150.0,0.00014986,2]
[424426487,1780875040000,-83538.10975074,0.000149,2]
[424426481,1780875040000,-156.33,0.00014882,2]
[424426503,1780875040000,-250.0,0.00014999,2]
[424426499,1780875040000,-242.9366496,0.00014986,2]
[424426516,1780875040000,-2249.49967224,0.00015,2]
[424426514,1780875040000,-572.00388343,0.00015,2]
[424426515,1780875040000,-508.53512842,0.00015,2]
[424426512,1780875040000,-1167.5,0.00015,2]
[424426513,1780875040000,-1030.70236582,0.00015,2]
[424426510,1780875040000,-15065660.02737291,0.00015,2]
[424426509,1780875040000,-1259.30110513,0.00015,2]
[424426517,1780875040000,-365.54270048,0.00015,2]
[424426511,1780875040000,-756.288,0.00015,2]
[424426508,1780875040000,-1581.87677735,0.00015,2]
[424426507,1780875040000,-300.0,0.00014999,2]
[424426505,1780875040000,-300.0,0.00014999,2]
[424426496,1780875040000,-150.0,0.00014986,2]
[424426504,1780875040000,-2000.0,0.00014999,2]
[424426500,1780875040000,-1411.56806743,0.0001499,2]
[424426502,1780875040000,-151.0,0.00014997,2]
[424426506,1780875040000,-666.0,0.00014999,2]
[424426501,1780875040000,-1411.56806743,0.0001499,2]
[424426530,1780875042000,-211.72889113,0.000149,2]
[424426531,1780875042000,-1378.09540621,0.00015,2]
[424426542,1780875045000,-5738.50542644,0.00015,2]
[424426541,1780875045000,-9501.59732466,0.00015,2]
[424426540,1780875045000,-476.12,0.00015,2]
[424426539,1780875045000,-943.98118858,0.00015,2]
[424426571,1780875128000,500.0,0.00028963,120]
[424426570,1780875128000,500.0,0.00027399,120]
[424426572,1780875129000,500.0,0.00028999,120]
[424426574,1780875129000,500.0,0.00029218,120]
[424426573,1780875129000,500.0,0.00028999,120]
[424426578,1780875130000,500.0,0.00030129,120]
[424426577,1780875130000,500.0,0.00030129,120]
[424426576,1780875130000,500.0,0.00030129,120]
[424426575,1780875130000,500.0,0.00029999,120]
[424426581,1780875131000,500.0,0.00030129,120]
[424426580,1780875131000,500.0,0.00030129,120]
[424426579,1780875131000,500.0,0.00030129,120]
[424426583,1780875132000,500.0,0.00030129,120]
[424426582,1780875132000,500.0,0.00030129,120]
[424426585,1780875132000,280.83,0.00030129,120]
[424426584,1780875132000,500.0,0.00030129,120]
[424426587,1780875166000,500.0,0.00028963,120]
[424426586,1780875166000,500.0,0.00027399,120]
[424426589,1780875167000,500.0,0.00028999,120]
[424426588,1780875167000,500.0,0.00028999,120]
[424426593,1780875168000,445.96648635,0.00030129,120]
[424426592,1780875168000,500.0,0.00030129,120]
[424426591,1780875168000,500.0,0.00029999,120]
[424426590,1780875168000,500.0,0.00029218,120]
[424426594,1780875210000,500.0,0.00030129,120]
[424426595,1780875235000,500.0,0.0003,120]
[424426596,1780875600000,150.0,0.00017795,120]
[424426597,1780875601000,219.76189026,0.00017795,120]
[424426598,1780875920000,152.0,0.00029503,120]
[424426603,1780875990000,320.91,0.0003,120]
[424426606,1780876203000,262.56,0.00030082,120]
[424426611,1780876231000,-168.84170947,0.00011078,2]
[424426623,1780876231000,-53787.73,0.000112,2]
[424426613,1780876231000,-250.0,0.00011128,2]
[424426615,1780876231000,-293.51982009,0.00011177,2]
[424426621,1780876231000,-273.87158044,0.00011181,2]
[424426619,1780876231000,-278.29747557,0.00011178,2]
[424426630,1780876231000,-500.0,0.00011534,2]
[424426628,1780876231000,-1940.48,0.00011342,2]
[424426632,1780876231000,-632.82721178,0.00011852,7]
[424426626,1780876231000,-150.0,0.00011296,2]
[424426634,1780876231000,-140529.23929573,0.00011878,2]
[424426637,1780876231000,-25341.865455,0.00011878,2]
[424426639,1780876231000,-172616.64855814,0.00011878,2]
[424426617,1780876231000,-150.0,0.00011178,2]
[424426656,1780876237000,-281.42614789,0.00011877,2]
[424426653,1780876237000,-500.0,0.00011877,2]
[424426655,1780876237000,-32.8902402,0.00011877,2]
[424426654,1780876237000,-500.0,0.00011877,2]
[424426659,1780876237000,-500.0,0.00011877,2]
[424426660,1780876237000,-500.0,0.00011877,2]
[424426658,1780876237000,-350.51552313,0.00011877,2]
[424426657,1780876237000,-406.03776589,0.00011877,2]
[424426662,1780876237000,-623.04076926,0.00011877,2]
[424426666,1780876237000,-500.0,0.00011877,2]
[424426664,1780876237000,-175.31257805,0.00011877,2]
[424426663,1780876237000,-500.0,0.00011877,2]
[424426672,1780876237000,-478.05099101,0.00011877,2]
[424426665,1780876237000,-500.0,0.00011877,2]
[424426667,1780876237000,-500.0,0.00011877,2]
[424426670,1780876237000,-500.0,0.00011877,2]
[424426668,1780876237000,-500.0,0.00011877,2]
[424426669,1780876237000,-500.0,0.00011877,2]
[424426671,1780876237000,-500.0,0.00011877,2]
[424426661,1780876237000,-168.58161266,0.00011877,2]
[424426685,1780876239000,-500.0,0.00011877,2]
[424426684,1780876239000,-21.94900899,0.00011877,2]
[424426687,1780876239000,-500.0,0.00011877,2]
[424426688,1780876239000,-500.0,0.00011877,2]
[424426689,1780876239000,-500.0,0.00011877,2]
[424426690,1780876239000,-290.32045272,0.00011877,2]
[424426686,1780876239000,-500.0,0.00011877,2]
[424426692,1780876240000,-500.0,0.00011877,2]
[424426693,1780876240000,-339.98159662,0.00011877,2]
[424426696,1780876240000,-48725.7977555,0.00011878,2]
[424426691,1780876240000,-209.67954728,0.00011877,2]
[424426695,1780876240000,-107134.96118229,0.00011878,2]
[424426694,1780876240000,-150.0,0.00011878,2]
[424426712,1780876246000,-223.83641865,0.00011878,2]
[424426711,1780876246000,-523.72250466,0.00011878,2]
[424426713,1780876246000,-315.48,0.00011878,2]
[424426710,1780876246000,-270.39079621,0.00011878,2]
[424426718,1780876966000,1000.0,0.00029452,120]
[424426719,1780877095000,230.17,0.00030082,120]
[424426742,1780877431000,-2011.95,0.00010608,2]
[424426739,1780877431000,-295.3656025,0.00010508,2]
[424426740,1780877431000,-92.6540945,0.00010562,2]
[424426741,1780877431000,-907.3459055,0.00010562,2]
[424426744,1780877431000,-150.0,0.00010666,2]
[424426750,1780877431000,-501.22583987,0.00010864,2]
[424426746,1780877431000,-321.9,0.00010712,2]
[424426745,1780877431000,-608.98447021,0.00010712,2]
[424426749,1780877431000,-245.63763087,0.00010864,2]
[424426747,1780877431000,-1069.11552979,0.00010712,2]
[424426748,1780877431000,-334.37,0.0001072,2]
[424426743,1780877431000,-150.0,0.0001066,2]
[424426779,1780877432000,-150.0,0.00011576,2]
[424426777,1780877432000,-206.55982497,0.00011568,2]
[424426781,1780877432000,-500.0,0.00011577,2]
[424426762,1780877432000,-161.66,0.00011136,2]
[424426765,1780877432000,-215.83393831,0.00011182,2]
[424426760,1780877432000,-1509.03,0.00011118,2]
[424426775,1780877432000,-500.0,0.00011559,2]
[424426773,1780877432000,-279.13288516,0.00011559,2]
[424426769,1780877432000,-1509.03,0.00011396,2]
[424426753,1780877432000,-2247.80730306,0.00010871,2]
[424426771,1780877432000,-230.42074716,0.00011489,2]
[424426756,1780877432000,-163.62,0.00011078,2]
[424426752,1780877432000,-601.35269694,0.00010871,2]
[424426757,1780877432000,-298.39410935,0.00011078,2]
[424426755,1780877432000,-622.08,0.00010997,2]
[424426754,1780877432000,-150.0,0.00010959,2]
[424426751,1780877432000,-406.70652926,0.00010864,2]
[424426785,1780877432000,-500.0,0.00011577,2]
[424426758,1780877432000,-331.65020449,0.00011078,2]
[424426783,1780877432000,-500.0,0.00011577,2]
[424426767,1780877432000,-153.46,0.00011233,2]
[424426797,1780877432000,-284.22643612,0.00011577,2]
[424426795,1780877432000,-245.36086619,0.00011577,2]
[424426826,1780877432000,-365.813,0.00011578,2]
[424426824,1780877432000,-10883.59327127,0.00011578,2]
[424426814,1780877432000,-3392.24936967,0.00011578,2]
[424426819,1780877432000,-659.1457183,0.00011578,2]
[424426816,1780877432000,-665.79967857,0.00011578,2]
[424426805,1780877432000,-500.0,0.00011577,2]
[424426810,1780877432000,-518.46435074,0.00011577,2]
[424426812,1780877432000,-76490.94065468,0.00011578,2]
[424426821,1780877432000,-1146.86392482,0.00011578,2]
[424426828,1780877432000,-1138.48044392,0.00011578,2]
[424426801,1780877432000,-500.0,0.00011577,2]
[424426791,1780877432000,-500.0,0.00011577,2]
[424426793,1780877432000,-220.02147166,0.00011577,2]
[424426792,1780877432000,-636.12853848,0.00011577,2]
[424426789,1780877432000,-500.0,0.00011577,2]
[424426787,1780877432000,-500.0,0.00011577,2]
[424426788,1780877432000,-500.0,0.00011577,2]
[424426799,1780877432000,-168.00712886,0.00011577,2]
[424426803,1780877432000,-500.0,0.00011577,2]
[424426807,1780877432000,-500.0,0.00011577,2]
[424426829,1780877439000,-4050.10874382,0.00011578,2]
[424426832,1780877440000,-1141717.05167164,0.00011578,2]
[424426859,1780877442000,4802.6,0.0003013,120]
[424426861,1780877443000,-3006.04483501,0.00011578,2]
[424426863,1780877443000,-4879.44990815,0.00011578,2]
[424426862,1780877443000,-2877.13022518,0.00011578,2]
[424426860,1780877443000,-981.19159346,0.00011578,2]
[424426874,1780877445000,-291.73906113,0.00011578,2]
[424426878,1780877447000,-6288.89999998,0.00011578,2]
[424426877,1780877447000,-3197.48163148,0.00011578,2]
[424426876,1780877447000,-1929.90344,0.00011578,2]
[424426875,1780877447000,-309.7792,0.00011578,2]
[424426879,1780877627000,1889.94505844,0.00030136,120]
[424426880,1780877719000,150.0,1.188e-05,2]
[424426883,1780877832000,218.8,0.00030082,120]
[424426886,1780878025000,161.0,0.0003013,120]
[424426887,1780878114000,1994.03,0.0003013,120]
[424426888,1780878131000,733.62,0.0003,120]
[424426904,1780878379000,9000.0,0.00027397,120]
[424426915,1780878563000,368.31133207,0.0003,120]
[424426919,1780878583000,277.01,0.00030082,120]
[424426920,1780878591000,1246.55,0.00027397,120]
[424426947,1780878632000,-500.0,0.0001126,2]
[424426955,1780878632000,-500.0,0.00011476,2]
[424426954,1780878632000,-500.0,0.00011476,2]
[424426946,1780878632000,-1481.79,0.00011074,2]
[424426952,1780878632000,-150.0,0.00011469,2]
[424426951,1780878632000,-500.0,0.00011469,2]
[424426950,1780878632000,-268.27689042,0.00011413,2]
[424426949,1780878632000,-1481.79,0.00011337,2]
[424426957,1780878632000,-500.0,0.00011476,2]
[424426961,1780878632000,-500.0,0.00011476,2]
[424426969,1780878632000,-371.68639575,0.00011577,2]
[424426967,1780878632000,-50536.56962635,0.00011477,2]
[424426968,1780878632000,-1000.0,0.00011577,2]
[424426956,1780878632000,-500.0,0.00011476,2]
[424426970,1780878632000,-372.48078518,0.00011577,2]
[424426964,1780878632000,-500.0,0.00011476,2]
[424426959,1780878632000,-500.0,0.00011476,2]
[424426963,1780878632000,-500.0,0.00011476,2]
[424426953,1780878632000,-237256.24056528,0.0001147,2]
[424426966,1780878632000,-340.66789514,0.00011476,2]
[424426948,1780878632000,-167.52,0.0001132,2]
[424426929,1780878632000,-208.0,9.989e-05,2]
[424426945,1780878632000,-150.0,0.00010959,2]
[424426925,1780878632000,-546.10271592,9.886e-05,2]
[424426926,1780878632000,-150.0,9.938e-05,2]
[424426928,1780878632000,-208.0,9.989e-05,2]
[424426931,1780878632000,-1419.41541763,0.0001009,2]
[424426927,1780878632000,-204.61661846,9.989e-05,2]
[424426930,1780878632000,-208.0,9.989e-05,2]
[424426932,1780878632000,-500.0,0.00010415,2]
[424426934,1780878632000,-1053.71656762,0.00010473,2]
[424426944,1780878632000,-500.0,0.00010944,2]
[424426937,1780878632000,-1671.50400551,0.00010599,2]
[424426935,1780878632000,-373.65373801,0.00010473,2]
[424426933,1780878632000,-572.62969437,0.00010473,2]
[424426936,1780878632000,-1481.79,0.00010546,2]
[424426939,1780878632000,-1000.0,0.00010686,2]
[424426940,1780878632000,-297.47203991,0.0001081,2]
[424426938,1780878632000,-628.54238985,0.00010599,2]
[424426941,1780878632000,-1184.31796009,0.0001081,2]
[424426943,1780878632000,-2168.84,0.0001089,2]
[424426942,1780878632000,-167.52,0.00010871,2]
[424426965,1780878632000,-500.0,0.00011476,2]
[424426986,1780878632000,-152.0,0.00011886,7]
[424426971,1780878632000,-1481.79,0.00011601,2]
[424426993,1780878632000,-500.0,0.00012107,2]
[424426996,1780878632000,-50536.56962634,0.00012238,2]
[424426999,1780878632000,-176.98636434,0.00012329,2]
[424427002,1780878632000,-500.0,0.00012336,2]
[424427008,1780878632000,-500.0,0.00012565,2]
[424427006,1780878632000,-78814.61337726,0.00012457,2]
[424427007,1780878632000,-255.0,0.00012536,2]
[424427003,1780878632000,-160.0,0.00012412,2]
[424426989,1780878632000,-166.90124495,0.00012018,2]
[424427000,1780878632000,-220.94004488,0.00012329,2]
[424427001,1780878632000,-186.18115721,0.00012329,2]
[424427004,1780878632000,-172.29,0.00012438,2]
[424427009,1780878632000,-500.0,0.0001261,2]
[424427005,1780878632000,-632.82721178,0.00012445,7]
[424427010,1780878632000,-50536.56962634,0.00012618,2]
[424427012,1780878632000,-150.0,0.00012784,7]
[424427013,1780878632000,-216.64169197,0.00012784,7]
[424426962,1780878632000,-500.0,0.00011476,2]
[424426997,1780878632000,-218.8,0.00012329,2]
[424426992,1780878632000,-632.82721178,0.00012089,7]
[424426998,1780878632000,-277.01,0.00012329,2]
[424426991,1780878632000,-150.0,0.00012074,7]
[424426973,1780878632000,-7493.89695829,0.00011677,2]
[424426975,1780878632000,-151.0,0.00011686,2]
[424426976,1780878632000,-78814.6133773,0.00011759,2]
[424426977,1780878632000,-167.52,0.00011769,2]
[424426982,1780878632000,-500.0,0.00011788,2]
[424426988,1780878632000,-177.33,0.0001195,2]
[424426981,1780878632000,-2000.0,0.00011782,2]
[424426979,1780878632000,-422.98910169,0.00011778,2]
[424426972,1780878632000,-215.83393831,0.00011647,2]
[424426978,1780878632000,-151.0,0.00011776,2]
[424426980,1780878632000,-4948.278,0.00011778,2]
[424426984,1780878632000,-152.0,0.00011859,7]
[424426994,1780878632000,-78814.61337726,0.00012108,2]
[424426995,1780878632000,-167.52,0.00012217,2]
[424427011,1780878632000,-167.52,0.00012666,2]
[424426985,1780878632000,-226.5,0.00011878,2]
[424426983,1780878632000,-50536.56962634,0.00011857,2]
[424426987,1780878632000,-150.0,0.000119,2]
[424426990,1780878632000,-500.0,0.00012062,2]
[424426974,1780878632000,-166.66,0.00011679,2]
[424427018,1780878633000,-2000.0,0.00012997,2]
[424427017,1780878633000,-220.94004488,0.00012997,2]
[424427016,1780878633000,-158.99295367,0.00012919,2]
[424427022,1780878633000,-36273.24518195,0.00013155,2]
[424427021,1780878633000,-2000.0,0.00013091,2]
[424427014,1780878633000,-632.82721178,0.000128,7]
[424427015,1780878633000,-78814.61337726,0.00012806,2]
[424427023,1780878633000,-42541.36819531,0.00013155,2]
[424427020,1780878633000,-950.6400069,0.00013,5]
[424427025,1780878633000,-150.56478136,0.00013322,2]
[424427019,1780878633000,-50536.56962634,0.00012998,2]
[424427024,1780878633000,-632.8272118,0.00013274,7]
[424427026,1780878633000,-500.0,0.00013343,2]
[424427031,1780878633000,-198.95850529,0.00013378,2]
[424427034,1780878633000,-317.6049902,0.00013378,2]
[424427033,1780878633000,-171.75260633,0.00013378,2]
[424427030,1780878633000,-295.28997694,0.00013378,2]
[424427036,1780878633000,-12036.2215775,0.00013379,2]
[424427032,1780878633000,-154.01503016,0.00013378,2]
[424427027,1780878633000,-186.18115721,0.00013357,2]
[424427028,1780878633000,-500.0,0.00013378,2]
[424427029,1780878633000,-500.0,0.00013378,2]
[424427035,1780878633000,-6233.07899559,0.00013379,2]
[424427068,1780878638000,-500.0,0.00013671,2]
[424427063,1780878638000,-150.0,0.00013571,2]
[424427064,1780878638000,-150.0,0.00013591,2]
[424427072,1780878638000,-500.0,0.00013698,2]
[424427066,1780878638000,-150.0,0.00013654,2]
[424427073,1780878638000,-504.74101189,0.00013698,2]
[424427067,1780878638000,-220.94004488,0.00013664,2]
[424427070,1780878638000,-150.0,0.00013694,2]
[424427071,1780878638000,-150.0,0.00013697,2]
[424427069,1780878638000,-901.92856008,0.00013683,2]
[424427078,1780878638000,-500.0,0.00013698,2]
[424427083,1780878638000,-500.0,0.00013698,2]
[424427085,1780878638000,-500.0,0.00013698,2]
[424427081,1780878638000,-500.0,0.00013698,2]
[424427074,1780878638000,-500.0,0.00013698,2]
[424427061,1780878638000,-78814.61337726,0.00013504,2]
[424427076,1780878638000,-500.0,0.00013698,2]
[424427079,1780878638000,-500.0,0.00013698,2]
[424427077,1780878638000,-500.0,0.00013698,2]
[424427092,1780878638000,-500.0,0.00013698,2]
[424427089,1780878638000,-500.0,0.00013698,2]
[424427087,1780878638000,-500.0,0.00013698,2]
[424427075,1780878638000,-500.0,0.00013698,2]
[424427065,1780878638000,-150.0,0.00013643,2]
[424427050,1780878638000,-150.0,0.00013488,2]
[424427057,1780878638000,-203.77673036,0.00013488,2]
[424427096,1780878638000,-500.0,0.00013698,2]
[424427038,1780878638000,-31912.69708548,0.00013379,2]
[424427040,1780878638000,-176.98636434,0.00013397,2]
[424427042,1780878638000,-161.399223,0.00013424,2]
[424427041,1780878638000,-252.149529,0.00013424,2]
[424427039,1780878638000,-226.5,0.00013379,2]
[424427043,1780878638000,-248.705104,0.00013424,2]
[424427044,1780878638000,-214.294028,0.00013424,2]